[Event "44th Chess Olympiad Women 2022"]
[Site "Chennai"]
[Date "2022.07.29"]
[Round "1.22"]
[White "Borosova, Zuzana"]
[Black "Kapali, Binita"]
[Result "1-0"]
[ECO "A07"]
[WhiteElo "2277"]
[BlackElo "1511"]
[Annotator "TA"]
[PlyCount "115"]
[EventDate "2022.07.29"]
[EventType "team-tourn"]
[EventCountry "IND"]
[SourceTitle "playchess.com"]
[Source "ChessBase"]
[SourceQuality "1"]
[WhiteTeam "Slovakia"]
[BlackTeam "Nepal"]
[WhiteTeamCountry "SVK"]
[BlackTeamCountry "NEP"]
[TimeControl "40/5400+30:1800+30"]

{[%evp 9,115,-9,-6,-14,0,0,-14,-14,-10,-6,-14,-17,-6,0,-12,-4,0,0,35,0,18,20,64,71,72,76,74,47,53,35,49,47,47,0,53,60,315,314,354,352,343,350,497,497,496,495,490,492,482,468,545,532,551,493,520,507,616,593,575,506,29980,666,666,623,639,629,587,586,829,928,958,962,952,958,913,774,743,718,914,927,923,924,924,919,908,896,868,820,937,920,956,957,1079,1057,29974,29975,29971,29972,29970,29971,29984,29981,29984,1692,1666,1566,29990,29991]} 1. Nf3 {[%emt 0:00:09]} d5 {[%emt 0:00:48]} 2. g3 {[%emt 0:01:52]} Nf6 {[%emt 0:00:45]} 3. Bg2 {[%emt 0:00:12]} Bg4 {[%emt 0:02:08]} 4. d3 {[%emt 0:03:40]} Nc6 {[%emt 0:02:20]} 5. Nbd2 {[%emt 0:06:23]} e5 {[%emt 0:02:27]} 6. h3 {[%emt 0:12:00] A07: Réti Opening: New York and Capablanca Systems.} Bf5 {[%emt 0:03:44]} 7. c3 {[%emt 0:11:42] [#]} Be7 $146 {[%emt 0:09:46]} ({Predecessor:} 7... Qd7 8. g4 Bg6 9. Nh4 Be7 10. Nxg6 hxg6 11. e3 g5 12. Nf3 O-O-O 13. Nxg5 Nxg4 14. Qxg4 Qxg4 15. hxg4 Rxh1+ 16. Bxh1 Bxg5 {½-½ (19) Saldano Dayer,H (2299)-Stefanova,A (2514) Mancha Real 2000}) 8. Qc2 {[%emt 0:16:45] The position is equal.} e4 {[%emt 0:13:38]} 9. Nh4 {[%emt 0:08:45]} exd3 {[%emt 0:10:57]} 10. exd3 {[%emt 0:00:15]} Be6 {[%emt 0:00:25]} 11. Nb3 {[%emt 0:04:12]} O-O {[%emt 0:09:46]} 12. Be3 {[%emt 0:04:11]} Rb8 {[%emt 0:02:51]} 13. O-O {[%emt 0:10:02]} a6 {[%emt 0:06:49]} 14. Kh2 {[%emt 0:02:32]} Nd7 {[%emt 0:02:22]} 15. Nf3 {[%emt 0:00:37]} Nde5 {[%emt 0:01:00]} 16. Nxe5 {[%emt 0:00:13]} Nxe5 {[%emt 0:00:12]} 17. f4 {[%emt 0:00:37]} Nc6 {[%emt 0:01:16]} 18. Rae1 {[%emt 0:01:09] White is more active.} (18. f5 $5 {[%cal Rf5e6]} Bc8 19. Rae1 $14) 18... Qd7 {[%emt 0:05:34]} 19. Nc5 {[%emt 0:05:11]} Bxc5 {[%emt 0:02:11]} 20. Bxc5 {[%emt 0:00:05]} Rfe8 {[%emt 0:00:19]} 21. Qf2 {[%emt 0:01:26] Against d4} (21. g4 $14 {should be considered.} f5 22. g5) 21... Bf5 {[%emt 0:01:38]} (21... d4 $11) 22. Qf3 $36 {[%emt 0:00:13][%mdl 2048] [#] Black must now prevent g4. White is pushing.} Ne7 $2 {[%emt 0:02:24][%mdl 8192] A mistake that costs the game.} (22... h5 $14) 23. g4 $18 {[%emt 0:01:51]} Qb5 {[%emt 0:10:24]} 24. Bxe7 {[%emt 0:02:10] This bishop pair is nice.} ({Resist} 24. Rxe7 Bxd3 25. Rfe1 (25. Rxc7 Bxf1 26. Qxf1 Qa5 $18) 25... Be4 $18) 24... Bxd3 {[%emt 0:01:07]} 25. a4 {[%emt 0:01:33]} Qd7 {[%emt 0:03:59]} (25... Qc4 $142 26. b3 Qxc3) 26. Qxd3 {[%emt 0:00:20]} Rxe7 {[%emt 0:00:16]} 27. Rxe7 {[%emt 0:01:19]} Qxe7 {[%emt 0:00:15]} 28. Qxd5 {[%emt 0:00:09]} c6 {[%emt 0:00:21]} 29. Qe4 {[%emt 0:00:32]} Qd7 {[%emt 0:00:44]} 30. Re1 {[%emt 0:00:14][%cal Bf1e1,Be1e2,Be2e7][%mdl 32]} h6 {[%emt 0:00:46]} 31. Qd4 {[%emt 0:01:16]} Qc7 {[%emt 0:00:47]} 32. Qe5 {[%emt 0:00:06]} Qd8 {[%emt 0:00:26]} 33. Re2 {[%emt 0:00:35]} Rc8 {[%emt 0:00:58]} 34. Be4 {[%emt 0:00:24]} Qh4 {[%emt 0:01:29]} (34... Qc7 $18 35. Qxc7 Rxc7) 35. Bf5 {[%emt 0:00:16]} (35. Qf5 $142 g6 36. Qxc8+ Kg7 {[#]} 37. Bxg6 $1 {[%mdl 512]} Qf6 38. Bf5 Qh4 39. Kg2 Qf6 40. Re8) 35... Rf8 {[%emt 0:00:36]} 36. Qe7 {[%emt 0:02:47]} Qxe7 {[%emt 0:00:54]} 37. Rxe7 {[%emt 0:00:05][%mdl 4096] Endgame KRB-KR} g6 {[%emt 0:00:24]} 38. Be4 {[%emt 0:00:19]} f5 {[%emt 0:00:13]} 39. gxf5 {[%emt 0:00:11]} gxf5 {[%emt 0:00:13]} 40. Bf3 {[%emt 0:01:36]} Rb8 {[%emt 0:00:26]} 41. a5 {[%emt 0:30:36]} Kf8 {[%emt 0:30:19]} 42. Re5 {[%emt 0:00:04]} Kg7 {[%emt 0:00:23]} 43. Rxf5 {[%emt 0:00:08]} Kg6 {[%emt 0:00:12]} 44. Re5 {[%emt 0:00:06] Threatens to win with Bh5+.} Kf6 {[%emt 0:00:12]} 45. Kg3 {[%emt 0:00:45]} Rd8 {[%emt 0:00:21]} 46. Kf2 {[%emt 0:00:30]} Rd2+ {[%emt 0:00:12]} 47. Re2 {[%emt 0:00:05]} Rd6 {[%emt 0:00:34]} 48. Be4 {[%emt 0:01:21]} Rd7 {[%emt 0:01:00]} 49. Bc2 {[%emt 0:00:53]} h5 {[%emt 0:00:14]} 50. h4 {[%emt 0:00:25]} Rg7 {[%emt 0:00:19]} 51. f5 {[%emt 0:00:17] White wants to mate with Re6+.} Rg4 {[%emt 0:00:39]} 52. Re6+ {[%emt 0:00:06]} Kf7 {[%emt 0:00:27]} 53. Re4 {[%emt 0:00:03]} Rg7 {[%emt 0:00:46]} 54. b4 {[%emt 0:00:19]} Kf6 {[%emt 0:00:12]} 55. Re6+ {[%emt 0:00:11]} Kf7 {[%emt 0:00:09]} 56. Rh6 {[%emt 0:00:19]} (56. Bb3 $142 Kf8 57. Rh6 Ke8 58. f6 Rg4 59. Rh8+ Kd7 60. f7 Rf4+ 61. Kg3) 56... Rg4 {[%emt 0:00:18]} 57. Rxh5 {[%emt 0:00:15]} Rc4 {[%emt 0:00:09]} 58. Bb3 {[%emt 0:00:04] Weighted Error Value: White=0.10 (very precise) /Black=0.65} 1-0

[Event "44th Chess Olympiad Women 2022"]
[Site "Chennai"]
[Date "2022.07.29"]
[Round "1.22"]
[White "Sucikova, Svetlana"]
[Black "Dhimal, Shanti"]
[Result "1-0"]
[ECO "D02"]
[WhiteElo "2188"]
[BlackElo "1499"]
[Annotator "TA"]
[PlyCount "75"]
[EventDate "2022.07.29"]
[EventType "team-tourn"]
[EventCountry "IND"]
[SourceTitle "playchess.com"]
[Source "ChessBase"]
[SourceQuality "1"]
[WhiteTeam "Slovakia"]
[BlackTeam "Nepal"]
[WhiteTeamCountry "SVK"]
[BlackTeamCountry "NEP"]
[TimeControl "40/5400+30:1800+30"]

{[%evp 10,75,18,17,31,29,45,53,81,34,41,33,108,50,76,68,113,102,116,106,170,170,433,437,427,419,422,433,425,366,475,462,601,584,593,447,466,486,502,500,493,485,498,502,536,516,574,563,589,568,587,581,560,564,613,608,589,460,489,440,1247,1228,2022,1822,1963,1848,1820,1733]} 1. Nf3 {[%emt 0:01:12]} Nf6 {[%emt 0:00:36]} 2. g3 {[%emt 0:00:33]} d5 {[%emt 0:00:27]} 3. Bg2 {[%emt 0:00:58]} e6 {[%emt 0:01:30]} 4. O-O {[%emt 0:01:31]} Bd6 {[%emt 0:01:12]} 5. d4 {[%emt 0:00:35]} O-O {[%emt 0:01:03]} 6. c4 {[%emt 0:00:43]} c5 {[%emt 0:04:04] Recently 6...h6 got a lot of attention. D02: 1 d4 d5 2 Nf3 sidelines, including 2...Nf6 3 g3 and 2...Nf6 3 Bf4.} 7. cxd5 {[%emt 0:03:55]} Nxd5 {[%emt 0:08:34]} 8. e4 {[%emt 0:03:38]} Nc7 {[%emt 0:03:39] White is slightly better.} 9. dxc5 {[%emt 0:05:33]} (9. Be3 $16) 9... Bxc5 $14 {[%emt 0:00:43]} 10. Qc2 {[%emt 0:00:35] [#]} Bb6 $146 {[%emt 0:02:42]} (10... Qe7 $1 $14) ({Predecessor:} 10... Qe7 11. e5 f6 12. Nc3 Bd7 13. Ne4 Bb6 14. exf6 gxf6 15. Bh6 Rd8 16. g4 Nd5 {1-0 (33) Makhmutov,R (2416)-Gusarov,A (2238) Ekaterinburg 2018}) 11. Bf4 {[%emt 0:04:51]} ({White should play} 11. Rd1 $16 Qe8 12. Bf4) 11... Nc6 {[%emt 0:02:36]} 12. Rd1 $36 {[%emt 0:02:24][%mdl 2048] White is pushing. White stays focused until the end.} Qe8 {[%emt 0:03:03]} 13. Bd6 {[%emt 0:03:43] White is much more active. The black rooks are badly placed.} e5 {[%emt 0:04:11][%cal Oc7b5]} 14. Na3 {[%emt 0:03:48][%cal Bb1a3,Ba3c4,Bc4d6][%mdl 32] Prevents Nb5.} Na6 {[%emt 0:06:31]} 15. Nc4 $18 {[%emt 0:01:58]} Bc5 $2 {[%emt 0:04:54]} (15... Bc7 {was necessary.} 16. Bxf8 Qxf8) 16. Bxc5 {[%emt 0:01:07]} ({Weaker is} 16. Bxf8 Bxf8 17. h3 Be6 18. Ncxe5 (18. Nfxe5 Nab4 $18) 18... Nab4 $18) 16... Nxc5 {[%emt 0:06:16]} 17. Nd6 $1 {[%emt 0:02:03][%csl LRc5,LRe8]} Qe7 {[%emt 0:07:04]} 18. Qxc5 {[%emt 0:01:06]} Bg4 {[%emt 0:02:52]} 19. Qa3 {[%emt 0:01:31]} Qf6 {[%emt 0:06:55]} 20. h3 {[%emt 0:02:49] White is clearly winning.} Bh5 {[%emt 0:01:51]} 21. g4 {[%emt 0:00:16]} Bg6 {[%emt 0:01:15]} 22. Nf5 {[%emt 0:00:26] [#] And now Rd6 would win.} Rfd8 {[%emt 0:02:21]} 23. Rac1 {[%emt 0:00:40]} h5 {[%emt 0:01:19]} 24. Rd6 {[%emt 0:01:55]} Rxd6 {[%emt 0:01:15]} 25. Qxd6 {[%emt 0:00:21]} Qxd6 {[%emt 0:00:53]} 26. Nxd6 {[%emt 0:00:07]} Rb8 {[%emt 0:05:26]} 27. b3 {[%emt 0:02:38]} f6 {[%emt 0:00:44]} 28. Nh4 {[%emt 0:00:54]} Kh7 {[%emt 0:02:47]} 29. Nxg6 {[%emt 0:01:27]} Kxg6 {[%emt 0:01:11]} 30. gxh5+ {[%emt 0:00:24]} Kxh5 {[%emt 0:00:34]} 31. Bf3+ {[%emt 0:00:30]} Kg5 {[%emt 0:02:45]} 32. Kg2 {[%emt 0:01:42]} Kf4 {[%emt 0:02:26]} 33. Nf5 {[%emt 0:04:01]} g6 {[%emt 0:02:19]} 34. Ne3 {[%emt 0:01:18]} Rd8 {[%emt 0:03:51]} (34... Rh8 $142 35. Nd5+ Kg5) 35. h4 {[%emt 0:03:42] [#] aiming for Nd5+.} Nd4 {[%emt 0:06:24]} 36. Nd5+ {[%emt 0:00:10]} Rxd5 {[%emt 0:01:28]} 37. exd5 {[%emt 0:00:07][%cal Be4d5,Bd5d6][%mdl 32]} Nxf3 {[%emt 0:00:43]} 38. d6 {[%emt 0:00:06] Weighted Error Value: White=0.15 (very precise) /Black=0.52} 1-0

[Event "44th Chess Olympiad Women 2022"]
[Site "Chennai"]
[Date "2022.07.29"]
[Round "1.22"]
[White "Adhikari, Kritisara"]
[Black "Hagarova, Zuzana"]
[Result "0-1"]
[ECO "A48"]
[WhiteElo "1552"]
[BlackElo "2293"]
[Annotator "TA"]
[PlyCount "84"]
[EventDate "2022.07.29"]
[EventType "team-tourn"]
[EventCountry "IND"]
[SourceTitle "playchess.com"]
[Source "ChessBase"]
[SourceQuality "1"]
[WhiteTeam "Nepal"]
[BlackTeam "Slovakia"]
[WhiteTeamCountry "NEP"]
[BlackTeamCountry "SVK"]
[TimeControl "40/5400+30:1800+30"]

{[%evp 11,83,-9,0,-4,0,-9,-4,-22,-20,-27,-23,-25,-18,-23,-18,-31,-29,-51,-34,-34,-12,-17,0,0,13,0,8,-10,-6,-14,-15,-8,-18,-56,-18,-23,0,-29,-41,-49,-37,-74,-47,-59,-53,-181,-166,-435,-430,-450,-453,-448,-422,-1337,-1339,-1316,-1305,-29991,-29992,-29992,-29993,-29993,-29994,-29994,-29995,-29995,-29996,-29996,-29997,-29997,-29998,-29998,-29999,-29999]} 1. d4 {[%emt 0:00:10]} Nf6 {[%emt 0:00:07]} 2. Bf4 {[%emt 0:00:49]} g6 {[%emt 0:00:18]} 3. e3 {[%emt 0:01:17]} Bg7 {[%emt 0:00:41]} 4. Nd2 {[%emt 0:02:42]} d6 {[%emt 0:06:30]} 5. Ngf3 {[%emt 0:08:01]} O-O {[%emt 0:02:12]} 6. h3 {[%emt 0:02:50]} Nc6 {[%emt 0:03:51] 6...b6 is a critical line.} 7. Be2 {[%emt 0:03:35] A48: 1 d4 Nf6 2 Nf3 g6: Torre, London and Colle Systems.} Nd7 {[%emt 0:04:01]} 8. Bh2 {[%emt 0:10:26]} e5 {[%emt 0:02:03][%cal Re5d4] [#]} 9. Nb3 $146 {[%emt 0:01:35] The position is equal.} ({Predecessor:} 9. c3 h6 10. O-O f5 11. b4 e4 12. Ne1 Nf6 13. b5 Ne7 14. Qb3+ Kh8 15. Nc2 {0-1 (46) Starostits,I (2484)-Lanka,Z (2391) Riga 2020}) 9... a5 {[%emt 0:11:14]} 10. a4 {[%emt 0:01:00]} e4 {[%emt 0:04:03]} 11. Nfd2 {[%emt 0:02:47]} Qe7 {[%emt 0:02:32]} 12. O-O {[%emt 0:04:09]} f5 {[%emt 0:04:15]} 13. Bc4+ {[%emt 0:05:40]} Kh8 {[%emt 0:00:06]} 14. Nc1 {[%emt 0:01:00]} Nf6 {[%emt 0:03:23]} 15. Re1 {[%emt 0:06:45]} Bd7 {[%emt 0:03:57]} 16. Ne2 {[%emt 0:02:56]} Nd8 {[%emt 0:17:34]} 17. Nf4 {[%emt 0:01:19]} c6 {[%emt 0:07:56]} 18. Bb3 {[%emt 0:04:58]} g5 {[%emt 0:03:32]} 19. Nh5 {[%emt 0:03:35]} Nxh5 {[%emt 0:02:13]} 20. Qxh5 {[%emt 0:00:13]} Be8 {[%emt 0:01:20]} 21. Qe2 {[%emt 0:00:39]} Bg6 {[%emt 0:01:14]} 22. Nc4 {[%emt 0:02:18]} Nf7 {[%emt 0:00:47][%cal Of5f4]} 23. Qd2 {[%emt 0:00:56]} Qd8 {[%emt 0:01:55]} (23... d5 $5 {[%cal Rd5c4]} 24. Na3 f4 $11) 24. Qe2 {[%emt 0:01:37]} d5 {[%emt 0:08:08]} 25. Nd2 {[%emt 0:00:18]} Nh6 {[%emt 0:00:26]} 26. f4 {[%emt 0:05:15]} exf3 {[%emt 0:03:07]} 27. Nxf3 {[%emt 0:01:18]} Nf7 {[%emt 0:00:16]} 28. Qd2 {[%emt 0:03:37] Now White is beyond hope.} ({White should play} 28. Nd2 $15) 28... g4 $19 {[%emt 0:03:16]} 29. hxg4 {[%emt 0:00:20]} (29. Ne5 {was the only chance.}) 29... fxg4 {[%emt 0:00:04]} 30. Ne5 {[%emt 0:01:43]} Nxe5 {[%emt 0:00:20]} 31. dxe5 {[%emt 0:00:44]} Qh4 {[%emt 0:00:36] [#] Prevents Bg3. aiming for ...g3.} 32. Bf4 {[%emt 0:01:12]} (32. g3 $142 Qh3 33. Rf1) 32... g3 {[%emt 0:00:20]} 33. Bxg3 {[%emt 0:09:16]} Qxg3 {[%emt 0:00:19]} 34. Re2 {[%emt 0:01:22]} Bxe5 {[%emt 0:00:19][%csl Ge5][%cal Rg3h2] Black mates.} 35. Rf2 {[%emt 0:01:11]} Qh2+ {[%emt 0:00:27]} 36. Kf1 {[%emt 0:00:08]} Qh1+ {[%emt 0:00:11]} 37. Ke2 {[%emt 0:00:18]} Rxf2+ {[%emt 0:00:09]} 38. Kxf2 {[%emt 0:00:21]} Rf8+ {[%emt 0:00:06][%cal Ba8f8,Bf8f1,Bf1d1][%mdl 32]} 39. Ke2 {[%emt 0:00:18]} Qxg2+ {[%emt 0:00:08]} 40. Kd1 {[%emt 0:00:30]} Bh5+ {[%emt 0:00:46]} 41. Kc1 {[%emt 0:31:01]} Rf1+ {[%emt 0:30:19]} 42. Qd1 {[%emt 0:00:17]} Rxd1# {[%emt 0:00:07] Weighted Error Value: White=0.66/Black=0.06 (flawless)} 0-1

[Event "44th Chess Olympiad Women 2022"]
[Site "Chennai"]
[Date "2022.07.29"]
[Round "1.22"]
[White "Neupane, Anisha"]
[Black "Mrvova, Alena"]
[Result "0-1"]
[ECO "B24"]
[WhiteElo "1488"]
[BlackElo "2165"]
[Annotator "TA"]
[PlyCount "90"]
[EventDate "2022.07.29"]
[EventType "team-tourn"]
[EventCountry "IND"]
[SourceTitle "playchess.com"]
[Source "ChessBase"]
[SourceQuality "1"]
[WhiteTeam "Nepal"]
[BlackTeam "Slovakia"]
[WhiteTeamCountry "NEP"]
[BlackTeamCountry "SVK"]
[TimeControl "40/5400+30:1800+30"]

{[%evp 16,89,4,0,0,-22,40,0,0,0,0,-2,0,-15,6,-45,-13,-100,-97,-140,-125,-247,-243,-339,-360,-370,-365,-347,-317,-330,-315,-403,-379,-375,-366,-493,-381,-468,-370,-340,-320,-526,-509,-571,-545,-544,-522,-535,-510,-619,-587,-700,-689,-924,-918,-881,-705,-1061,-1035,-1002,-664,-2218,-2218,-6014,-5962,-29983,-29971,-5414,-5414,-29992,-29993,-29993,-29994,-29994,-29995,-29999]} 1. e4 {[%emt 0:00:03]} c5 {[%emt 0:00:22]} 2. Nc3 {[%emt 0:00:52]} Nc6 {[%emt 0:00:39]} 3. f4 {[%emt 0:01:03]} e6 {[%emt 0:01:05]} 4. Nf3 {[%emt 0:01:41]} Nge7 {[%emt 0:01:32]} 5. d3 {[%emt 0:03:09]} d5 {[%emt 0:01:43]} 6. g3 {[%emt 0:03:25]} d4 {[%emt 0:04:03]} 7. Ne2 {[%emt 0:04:14]} g6 {[%emt 0:06:21]} 8. Bg2 {[%emt 0:09:26]} Bg7 {[%emt 0:00:40]} 9. O-O {[%emt 0:02:04]} O-O {[%emt 0:00:27] B24: Closed Sicilian: 3 g3 sidelines.} 10. c3 {[%emt 0:06:35]} Qb6 {[%emt 0:14:06] [#]} (10... b6 $11) 11. Qc2 $146 {[%emt 0:05:36]} ({Predecessor:} 11. Qe1 Bd7 12. a3 a5 13. Nd2 a4 14. Nc4 Qa6 15. Rb1 Na7 16. cxd4 cxd4 17. Bd2 {½-½ (28) Leroux,G (1560)-Struik,T (1903) Agneaux 2002}) 11... Bd7 {[%emt 0:06:38][%cal Bc8d7,Bd7e6,Be6c4][%mdl 32] The position is equal.} 12. Kh1 {[%emt 0:02:59]} Rac8 {[%emt 0:01:14]} 13. Bd2 {[%emt 0:04:27]} Rfd8 {[%emt 0:01:47]} 14. Rad1 {[%emt 0:03:17]} e5 {[%emt 0:08:20]} 15. h3 {[%emt 0:09:26]} (15. fxe5 $11 Nxe5 16. Nxe5 Bxe5 17. c4) 15... Be6 {[%emt 0:08:48]} 16. Nc1 {[%emt 0:12:14]} (16. c4 $11) 16... c4 {[%emt 0:06:30][%cal Bc5c4,Bc4d3,Bd3d2][%mdl 32] Black is more active. White is on the road to losing.} 17. Ng5 {[%emt 0:10:17] [#]} cxd3 $1 {[%emt 0:00:25]} 18. Qb1 {[%emt 0:05:38]} (18. Qa4 $17) 18... Bc4 $19 {[%emt 0:01:27] aiming for ...dxc3.} 19. cxd4 {[%emt 0:07:47]} Nxd4 {[%emt 0:01:44]} ({Not} 19... Qxd4 $2 20. b3 Ba6 21. b4 $17) ({Don't go for} 19... Rxd4 $2 20. Nb3 $19) 20. Be3 {[%emt 0:01:41]} exf4 {[%emt 0:06:20]} 21. gxf4 {[%emt 0:01:05]} d2 {[%emt 0:00:25]} 22. Nd3 {[%emt 0:01:16]} h6 {[%emt 0:00:33] Chess con chili.} 23. Nf3 {[%emt 0:00:40]} Bxd3 {[%emt 0:00:10]} 24. Qxd3 {[%emt 0:00:39] [#]} Nxf3 {[%emt 0:00:15] Pair of Knights!} 25. Qe2 {[%emt 0:01:26]} (25. Bxb6 Rxd3) 25... Nd4 {[%emt 0:00:07]} 26. Qf2 {[%emt 0:00:47]} Qa5 {[%emt 0:03:28]} 27. Rxd2 {[%emt 0:00:50][%cal Re3d4]} Ndc6 {[%emt 0:00:00]} 28. Rfd1 $2 {[%emt 0:00:49]} (28. f5 f6 29. a3) 28... Qxa2 {[%emt 0:01:58]} 29. e5 {[%emt 0:00:37]} Rxd2 {[%emt 0:00:10]} 30. Rxd2 {[%emt 0:00:13]} Qb1+ {[%emt 0:02:22]} 31. Kh2 {[%emt 0:00:17]} Qf5 {[%emt 0:00:20]} 32. Qe1 {[%emt 0:01:05]} g5 {[%emt 0:00:39]} 33. Rf2 {[%emt 0:00:30]} Ng6 {[%emt 0:00:58][%cal Rg5f4,Be7g6,Bg6f4,Bf4d3][%mdl 32]} 34. fxg5 {[%emt 0:00:50]} Qxe5+ {[%emt 0:00:15]} 35. Kg1 {[%emt 0:00:09]} hxg5 {[%emt 0:00:11]} 36. Qd2 {[%emt 0:00:14]} Rd8 {[%emt 0:00:48]} 37. Qc1 {[%emt 0:00:19]} Nf4 {[%emt 0:01:31]} 38. Bf1 {[%emt 0:00:29]} Nd3 {[%emt 0:00:22]} 39. Bxd3 {[%emt 0:00:11]} Rxd3 {[%emt 0:00:36]} 40. Bxg5 {[%emt 0:00:44]} Qd5 {[%emt 0:01:27]} 41. Kh2 {[%emt 0:31:01]} Rd1 {[%emt 0:31:53]} 42. Qe3 {[%emt 0:00:42]} Be5+ {[%emt 0:04:02] Black mates.} 43. Bf4 {[%emt 0:00:27]} Rh1+ {[%emt 0:00:07]} 44. Kg3 {[%emt 0:00:08]} Rg1+ {[%emt 0:00:06]} 45. Kh2 {[%emt 0:00:40]} Qh1# {[%emt 0:00:08] Weighted Error Value: White=0.74/Black=0.24 (precise)} 0-1

[Event "44th Chess Olympiad Women 2022"]
[Site "Chennai"]
[Date "2022.07.29"]
[Round "1.23"]
[White "Worek, Joanna"]
[Black "De la Riva Real, Ariadna"]
[Result "0-1"]
[WhiteElo "2280"]
[BlackElo "1649"]
[Annotator "TA"]
[PlyCount "25"]
[EventDate "2022.07.29"]
[EventType "team-tourn"]
[EventCountry "IND"]
[SourceTitle "playchess.com"]
[Source "ChessBase"]
[SourceQuality "1"]
[WhiteTeam "Czech Republic"]
[BlackTeam "Andorra"]
[WhiteTeamCountry "CZE"]
[BlackTeamCountry "AND"]
[TimeControl "40/5400+30:1800+30"]

{[%evp 9,12,22,26,24,30]} 1. e4 {[%emt 0:00:03]} c5 {[%emt 0:00:08]} 2. Nc3 {[%emt 0:00:29]} g6 {[%emt 0:00:38]} 3. d4 {[%emt 0:00:53]} cxd4 {[%emt 0:01:10]} 4. Qxd4 {[%emt 0:00:05]} Nf6 {[%emt 0:00:26]} 5. Bg5 {[%emt 0:02:59]} Nc6 {[%emt 0:02:08]} 6. Qd2 {[%emt 0:00:18] B23: Closed Sicilian: Lines without g3.} Bg7 {[%emt 0:04:03][%mdl 32768] [#] A rather calm draw. Loss on time!?} {Predecessor:} 7. Bh6 $146 Bxh6 8. Qxh6 Qb6 9. O-O-O d6 10. f3 Be6 11. Nge2 Rc8 12. Qd2 Ne5 13. Nf4 {1-0 (34) Sadhwani,R (2616)-Rangel,D (2207) Chess.com INT 2022} 0-1

[Event "44th Chess Olympiad Women 2022"]
[Site "Chennai"]
[Date "2022.07.29"]
[Round "1.23"]
[White "Koubova, Anna Marie"]
[Black "Galera Serra, Maria"]
[Result "1-0"]
[ECO "D15"]
[WhiteElo "2115"]
[BlackElo "1464"]
[Annotator "TA"]
[PlyCount "65"]
[EventDate "2022.07.29"]
[EventType "team-tourn"]
[EventCountry "IND"]
[SourceTitle "playchess.com"]
[Source "ChessBase"]
[SourceQuality "1"]
[WhiteTeam "Czech Republic"]
[BlackTeam "Andorra"]
[WhiteTeamCountry "CZE"]
[BlackTeamCountry "AND"]
[TimeControl "40/5400+30:1800+30"]

{[%evp 9,65,10,41,0,57,54,70,68,73,60,72,7,12,7,30,39,72,60,65,49,45,48,47,32,46,28,42,26,75,74,89,76,93,100,123,122,160,159,245,217,458,473,580,563,833,823,1153,1116,1181,1195,1290,1168,1647,1492,2245,2243,6629,6203]} 1. d4 {[%emt 0:00:07]} d5 {[%emt 0:00:10]} 2. c4 {[%emt 0:00:12]} c6 {[%emt 0:00:08]} 3. Nf3 {[%emt 0:01:21]} Nf6 {[%emt 0:00:08]} 4. g3 {[%emt 0:01:46]} Bf5 {[%emt 0:04:17]} 5. Nc3 {[%emt 0:01:52]} dxc4 {[%emt 0:01:44]} 6. Bg2 {[%emt 0:03:23] D15: Slav Defence: 4 Nc3 a6 and gambit lines after 4 Nc3 dxc4.} e6 {[%emt 0:03:36]} (6... Nbd7 $11) 7. Ne5 $14 {[%emt 0:01:55]} Be7 {[%emt 0:04:39]} 8. Nxc4 {[%emt 0:01:54] White is slightly better.} O-O {[%emt 0:00:56]} 9. O-O {[%emt 0:00:36]} Nbd7 {[%emt 0:04:28]} 10. Bf4 {[%emt 0:03:10]} (10. e4 $16 Bg6 11. a4) 10... Nd5 $11 {[%emt 0:19:31]} 11. Bd6 {[%emt 0:04:15] [#]} N7f6 $146 {[%emt 0:10:42]} ({Predecessor:} 11... N7b6 12. Bxe7 Qxe7 13. Ne5 h6 14. a3 Rad8 15. e4 Nxc3 16. bxc3 Bh7 17. Qb3 Qc7 {1-0 (40) Pelikan,J (1250)-Porc,P (1664) Brno 2009}) 12. Bxe7 {[%emt 0:11:21]} Nxe7 {[%emt 0:04:42]} 13. e3 {[%emt 0:11:21][%cal Be2e3,Be3e4,Be4e5][%mdl 32]} h6 {[%emt 0:04:04]} 14. Rc1 {[%emt 0:01:50]} Ned5 {[%emt 0:07:35]} 15. Qb3 {[%emt 0:03:58]} Nxc3 {[%emt 0:04:44]} 16. bxc3 {[%emt 0:07:10]} Rb8 {[%emt 0:00:50]} 17. Nd2 {[%emt 0:04:00]} c5 {[%emt 0:07:10]} 18. e4 {[%emt 0:06:48]} (18. Bxb7 $2 Qc7 19. Qb5 Rxb7 $19) 18... Bg4 {[%emt 0:02:28]} (18... Bh7 $11 {is superior.}) 19. e5 $16 {[%emt 0:02:41]} Nh7 {[%emt 0:00:51]} 20. Qa4 {[%emt 0:09:13]} cxd4 {[%emt 0:04:36]} 21. cxd4 {[%emt 0:00:31]} Be2 {[%emt 0:00:12]} 22. Rfe1 {[%emt 0:00:21]} ({And not} 22. Qxa7 Bxf1 23. Nxf1 Ra8 $17) 22... Ba6 {[%emt 0:00:06]} 23. Ne4 {[%emt 0:02:40][%cal Bd2e4,Be4c5,Bc5e6,Be6c7][%mdl 32]} f6 {[%emt 0:02:41]} (23... Rc8 $16 {might work better.} 24. Nd6 Rxc1 25. Rxc1 Nf6) 24. Nc5 $18 {[%emt 0:01:46][%csl LRa6,LRe6]} Qe8 {[%emt 0:02:17] [#]} (24... Re8 25. Rb1 (25. Nxa6 bxa6 26. Rcd1 fxe5 $16) 25... fxe5) 25. Qb3 {[%emt 0:02:19] White is clearly winning.} fxe5 {[%emt 0:05:14]} 26. Nxe6 {[%emt 0:00:54]} Rf7 {[%emt 0:01:33]} 27. Nc7 {[%emt 0:01:20] Prevents Qb5.} Qd8 {[%emt 0:01:20]} 28. Bd5 {[%emt 0:01:31]} Ng5 {[%emt 0:00:18]} 29. h4 {[%emt 0:02:00]} Nh3+ {[%emt 0:01:09]} 30. Kg2 {[%emt 0:00:36]} Kh8 {[%emt 0:01:17]} 31. Bxf7 {[%emt 0:00:39] Active counter play!} Nf4+ {[%emt 0:01:17]} 32. gxf4 {[%emt 0:00:18]} Qxh4 {[%emt 0:00:32]} 33. Nxa6 {[%emt 0:02:04] Weighted Error Value: White=0.11 (very precise) /Black=0.43} 1-0